lending/lending_fUSD_20251022
["ID","MTS","AMOUNT","RATE_DAILY","PERIOD"]
[392091351,1761149432662,-164.0,0.00042689,90]
[392091353,1761149432671,-164.0,0.00042689,90]
[392091355,1761149432680,-164.0,0.00042689,90]
[392091357,1761149432691,-164.0,0.00042689,90]
[392091359,1761149432700,-164.0,0.00042689,90]
[392091360,1761149432709,-164.0,0.00042689,90]
[392091362,1761149432718,-164.0,0.00042689,90]
[392091364,1761149432728,-164.0,0.00042689,90]
[392091366,1761149432737,-330.0,0.00042689,90]
[392091368,1761149432746,-330.0,0.00042689,90]
[392091370,1761149432756,-330.0,0.00042689,90]
[392091372,1761149432765,-330.0,0.00042689,90]
[392091374,1761149432774,-330.0,0.00042689,90]
[392091376,1761149432783,-330.0,0.00042689,90]
[392091378,1761149432793,-330.0,0.00042689,90]
[392091380,1761149432802,-330.0,0.00042689,90]
[392091383,1761149432812,-330.0,0.00042689,90]
[392091385,1761149432821,-330.0,0.00042689,90]
[392091387,1761149432831,-330.0,0.00042689,90]
[392091388,1761149432840,-330.0,0.00042689,90]
[392091391,1761149432850,-330.0,0.00042689,90]
[392091393,1761149432859,-330.0,0.00042689,90]
[392091395,1761149432868,-183.0,0.00042689,90]
[392091397,1761149432878,-183.0,0.00042689,90]
[392091399,1761149432888,-183.0,0.00042689,90]
[392091400,1761149432897,-183.0,0.00042689,90]
[392091401,1761149432906,-183.0,0.00042689,90]
[392091402,1761149432916,-183.0,0.00042689,90]
[392091403,1761149432925,-183.0,0.00042689,90]
[392091404,1761149432935,-183.0,0.00042689,90]
[392091405,1761149432944,-183.0,0.00042689,90]
[392091406,1761149432954,-183.0,0.00042689,90]
[392091407,1761149432964,-183.0,0.00042689,90]
[392091408,1761149432973,-183.0,0.00042689,90]
[392091409,1761149432983,-183.0,0.00042689,90]
[392091410,1761149432992,-183.0,0.00042689,90]
[392091411,1761149433002,-176.26,0.000427,30]
[392091412,1761149433013,-475.34,0.000427,30]
[392091413,1761149433022,-475.34,0.00042713,30]
[392091414,1761149433032,-475.34,0.00042713,30]
[392091415,1761149433041,-475.34,0.00042713,30]
[392091416,1761149433051,-475.34,0.00042713,30]
[392091417,1761149433061,-475.34,0.00042713,30]
[392091418,1761149433070,-150.0,0.00042713,30]
[392091419,1761149433080,-19365.02648546,0.00042745,120]
[392091420,1761149433093,-555.1081798,0.00042745,120]
[392091421,1761149433102,-500.0,0.00042852,30]
[392091422,1761149433112,-500.0,0.00042991,30]
[392091423,1761149433123,-230.11,0.00043,120]
[392091424,1761149433132,-1662.85,0.00043,120]
[392091425,1761149433142,-826.81690165,0.00043,120]
[392091426,1761149433158,-502.27052335,0.00043,120]
[392091427,1761149433170,-1923.8446269,0.00043,120]
[392091428,1761149433186,-3191.28494457,0.00043,120]
[392091446,1761149438080,-1504.87849378,0.0004214,50]
[392091447,1761149438091,-1080.16152156,0.00043,120]
[392091448,1761149438105,-640.93868497,0.00043,120]
[392091449,1761149438118,-1834.682797,0.00043,120]
[392091450,1761149438128,-4610.94,0.00043,120]
[392091451,1761149438139,-900.0,0.00043462,30]
[392091452,1761149438149,-5499.46,0.00043567,120]
[392091453,1761149438159,-600.0,0.000436,2]
[392091455,1761149438170,-535.0,0.000436,2]
[392091457,1761149438181,-418.0,0.000438,2]
[392091458,1761149438192,-182.30789964,0.00043836,2]
[392091459,1761149438202,-696.1,0.00043841,30]
[392091460,1761149438213,-475.34,0.00043841,30]
[392091461,1761149438223,-500.0,0.00043887,30]
[392091462,1761149438234,-500.0,0.00043889,30]
[392091463,1761149438248,-1103.0,0.00043978,30]
[392091464,1761149438259,-500.0,0.00043995,30]
[392091467,1761149438270,-10146.04856966,0.00044,7]
[392091468,1761149438282,-4922.18886241,0.00044,15]
[392091471,1761149438294,-4922.18886235,0.00044011,15]
[392091472,1761149438305,-500.0,0.00044021,120]
[392091475,1761149438317,-258.22374092,0.00044021,120]
[392091476,1761149438327,-2365.8855,0.00044022,2]
[392091477,1761149438339,-4922.18886235,0.00044022,15]
[392091478,1761149438354,-4922.18886235,0.00044033,15]
[392091480,1761149438365,-4922.18886235,0.00044044,15]
[392091482,1761149438375,-184.28895503,0.00044052,28]
[392091484,1761149438386,-150.0,0.00044052,30]
[392091486,1761149438397,-4922.18886235,0.00044056,15]
[392091489,1761149438408,-500.0,0.00044056,30]
[392091491,1761149438418,-3100.44037181,0.00044067,15]
[392091530,1761149440061,-1084.3429618,0.00044067,15]
[392091531,1761149440111,-737.40552874,0.00044067,15]
[392091532,1761149440123,-4922.18886235,0.00044078,15]
[392091533,1761149440136,-1845.22673872,0.00044084,15]
[392091534,1761149440149,-1845.22673869,0.00044086,15]
[392091535,1761149440161,-1845.22673869,0.00044088,15]
[392091536,1761149440172,-4922.18886235,0.00044089,15]
[392091537,1761149440189,-1845.22673869,0.00044089,15]
[392091538,1761149440201,-1009.84,0.0004409,2]
[392091539,1761149440215,-1505.01426938,0.00044091,15]
[392091540,1761149440233,-340.21246931,0.00044091,15]
[392091541,1761149440246,-170.69279879,0.00044099,120]
[392091542,1761149440258,-162.86370135,0.00044099,15]
[392091543,1761149440270,-349.3346018,0.00044099,120]
[392091544,1761149440282,-270.1805546,0.00044099,120]
[392091545,1761149440293,-199.96141613,0.00044099,120]
[392091546,1761149440304,-208.89321798,0.00044099,120]
[392091547,1761149440314,-300.0,0.000441,15]
[392091548,1761149440324,-5000.0,0.000441,120]
[392091549,1761149440335,-4334.84152204,0.000441,60]
[392091550,1761149440379,-5760.97075011,0.000441,60]
[392091551,1761149440393,-8131.22788333,0.000441,60]
[392091564,1761149444220,-7201.34,0.00043,120]
[392091565,1761149444229,-1845.22673869,0.00044093,15]
[392091566,1761149444239,-10611.36946134,0.000441,60]
[392091567,1761149444251,-49428.94702122,0.000441,60]
[392091568,1761149444263,-1232.90982,0.000441,60]
[392091569,1761149444304,-51670.61344196,0.000441,60]
[392091570,1761149444314,-798.36553756,0.000441,2]
[392091571,1761149444323,-4832.30379978,0.000441,15]
[392091572,1761149444470,-30.28968486,0.000441,15]
[392091573,1761149444489,-59.59537771,0.000441,15]
[392091574,1761149444499,-256.34847149,0.000441,2]
[392091575,1761149444509,-4987.26513412,0.00044121,2]
[392091576,1761149444519,-160.56398267,0.00044122,19]
[392091577,1761149444528,-6398.61264799,0.00044142,3]
[392091578,1761149444538,-6398.61264799,0.00044143,3]
[392091579,1761149444547,-150.0,0.00044152,30]
[392091580,1761149444557,-150.0,0.00044152,30]
[392091581,1761149444567,-4647.0,0.00044164,120]
[392091582,1761149444576,-500.0,0.00044173,10]
[392091583,1761149444585,-500.0,0.00044173,2]
[392091584,1761149444595,-471.61085,0.00044173,10]
[392091587,1761149444762,-500.0,0.00044173,10]
[392091588,1761149444772,-6398.61264799,0.00044174,3]
[392091589,1761149444782,-166363.928848,0.0004418,3]
[392091590,1761149444791,-1009.84,0.0004418,2]
[392091591,1761149444803,-1347.05928036,0.00044184,120]
[392091592,1761149444812,-202.4377264,0.00044184,14]
[392091593,1761149444822,-6398.61264799,0.00044189,3]
[392091594,1761149444831,-31993.06324,0.0004419,3]
[392091595,1761149444841,-151.13,0.0004419,2]
[392091596,1761149444852,-1000.0,0.00044199,30]
[392091597,1761149444862,-199.0,0.00044199,7]
[392091598,1761149444871,-1000.0,0.00044199,120]
[392091599,1761149444880,-1000.0,0.00044199,120]
[392091600,1761149444890,-1000.0,0.00044199,120]
[392091601,1761149444899,-1000.0,0.00044199,120]
[392091602,1761149444909,-1000.0,0.00044199,120]
[392091603,1761149444918,-999.0,0.00044199,120]
[392091604,1761149444928,-615.1,0.00044199,120]
[392091605,1761149444939,-4999999.0,0.000442,120]
[392091606,1761149444949,-500.0,0.000442,30]
[392091607,1761149444959,-150.0,0.000442,30]
[392091608,1761149444968,-150.0,0.000442,30]
[392091609,1761149444977,-1125.7,0.000442,30]
[392091610,1761149444987,-150.0,0.000442,30]
[392091611,1761149444996,-150.0,0.000442,30]
[392091612,1761149445006,-176.26,0.000442,30]
[392091613,1761149445016,-150.0,0.000442,30]
[392091614,1761149445025,-150.0,0.00044252,30]
[392091615,1761149445035,-150.0,0.00044252,30]
[392091616,1761149445045,-674.02941388,0.00044288,30]
[392091617,1761149445055,-202.43772635,0.00044303,15]
[392091618,1761149445064,-165.05,0.00044314,2]
[392091619,1761149445074,-200.0,0.00044358,2]
[392091620,1761149445084,-2005.02,0.00044358,2]
[392091621,1761149445094,-19482.49,0.00044358,2]
[392091622,1761149445104,-666.0,0.00044358,20]
[392091623,1761149445114,-1000.0,0.00044358,2]
[392091624,1761149445131,-1362.66,0.00044358,120]
[392091625,1761149445144,-150.0,0.000444,30]
[392091626,1761149445155,-150.0,0.000444,30]
[392091627,1761149445166,-151.04,0.000444,30]
[392091628,1761149445177,-700.0,0.000444,15]
[392091629,1761149445189,-202.43772635,0.00044423,15]
[392091630,1761149445199,-747.48,0.00044541,30]
[392091631,1761149445209,-1347.05928034,0.00044542,120]
[392091632,1761149445219,-202.43772635,0.00044542,16]
[392091633,1761149445230,-2549.9335984,0.00044547,2]
[392091634,1761149445240,-150.0,0.000446,30]
[392091635,1761149445252,-150.0,0.000446,30]
[392091636,1761149445262,-150.0,0.000446,30]
[392091637,1761149445272,-500.0,0.00044657,120]
[392091638,1761149445282,-202.43772635,0.00044661,16]
[392091639,1761149445292,-1579.21,0.00044713,2]
[392091640,1761149445302,-320.5756937,0.00044721,10]
[392091641,1761149445312,-1000.0,0.00044721,2]
[392091642,1761149445322,-307.41617309,0.00044721,10]
[392091643,1761149445332,-775.62446225,0.0004478,30]
[392091644,1761149445341,-202.43772635,0.00044781,17]
[392091645,1761149445351,-150.0,0.000448,30]
[392091646,1761149445361,-150.0,0.000448,30]
[392091647,1761149445370,-150.0,0.000448,30]
[392091648,1761149445381,-150.0,0.000448,30]
[392091649,1761149445392,-150.0,0.000448,30]
[392091650,1761149445402,-312.72,0.000448,30]
[392091651,1761149445411,-18996.3662,0.000448,2]
[392091652,1761149445422,-1000.0,0.000449,120]
[392091653,1761149445431,-1347.05928034,0.000449,120]
[392091654,1761149445441,-202.43772635,0.000449,17]
[392091655,1761149445451,-215.72,0.000449,120]
[392091656,1761149445460,-166.47,0.000449,120]
[392091657,1761149445470,-880.40049345,0.00044956,120]
[392091658,1761149445479,-880.40049345,0.00044957,120]
[392091659,1761149445489,-880.40049345,0.00044958,120]
[392091660,1761149445499,-346.62139472,0.00044961,120]
[392091661,1761149445512,-880.40049345,0.00044963,120]
[392091662,1761149445523,-1385.71948648,0.00044979,120]
[392091663,1761149445532,-346.62139472,0.00044983,120]
[392091664,1761149445542,-1385.71948648,0.00044986,120]
[392091665,1761149445552,-1385.71948648,0.00044995,120]
[392091666,1761149445562,-346.62139472,0.00044998,120]
[392091667,1761149445572,-346.62139472,0.00044999,120]
[392091668,1761149445582,-1766.10338874,0.00044999,60]
[392091669,1761149445592,-380.01530316,0.00044999,15]
[392091670,1761149445603,-398.28319717,0.00044999,120]
[392091671,1761149445614,-500.0,0.00044999,120]
[392091672,1761149445628,-630.42129406,0.00044999,120]
[392091673,1761149445639,-446.00485301,0.00044999,7]
[392091674,1761149445649,-466.57663764,0.00044999,120]
[392091675,1761149445659,-487.41750861,0.00044999,120]
[392091676,1761149445671,-315.11407087,0.00044999,120]
[392091677,1761149445681,-1385.71948648,0.00045,120]
[392091678,1761149445693,-40747.52379523,0.00045,18]
[392091679,1761149445703,-2952.9145278,0.00045,120]
[392091680,1761149445717,-1000000.0,0.00045,120]
[392091681,1761149445727,-1000000.0,0.00045,120]
[392091682,1761149445737,-511892.3178029,0.00045,120]
[392091692,1761149711598,-168.0,0.00031,120]
[392091756,1761150432122,-1167.50827157,0.0001995,15]
[392091757,1761150433117,-225.0054011,0.0001995,15]
[392091758,1761150439085,-201.39057833,0.0001995,15]
[392091759,1761150440130,-365.05578639,0.0001995,15]
[392091761,1761150447085,-160.63822509,0.0001995,15]
[392091766,1761150474760,4663.71273327,0.00018,2]
[392091767,1761150478510,167404.19055068,0.00015,2]
[392091813,1761150546081,-2710.240764,0.0001995,15]
[392091814,1761150546711,250.0,0.00017,2]
[392091815,1761150548122,-300.0,0.00019,2]
[392091816,1761150548145,-590.16097352,0.0001995,15]
[392091817,1761150548166,-535.95469971,0.0002,2]
[392091818,1761150548187,-1016.393912,0.00027859,2]
[392091819,1761150548208,-597.0,0.00027999,2]
[392091820,1761150548230,-14999.73849477,0.00028,2]
[392091821,1761150550149,-32752.71337624,0.00028,2]
[392091822,1761150550169,-566.14072411,0.00029,5]
[392091823,1761150550189,-233.43589981,0.0002999,2]
[392091824,1761150550209,-500.0,0.00029999,2]
[392091825,1761150550230,-500.0,0.00029999,2]
[392091826,1761150550257,-518.39539317,0.00029999,2]
[392091827,1761150550277,-500.0,0.00029999,2]
[392091828,1761150550297,-500.0,0.00029999,2]
[392091829,1761150550328,-500.0,0.00029999,2]
[392091830,1761150550348,-500.0,0.00029999,2]
[392091831,1761150550368,-454.08965905,0.00029999,2]
[392091832,1761150550388,-500.0,0.00029999,2]
[392091833,1761150550407,-23891.12024762,0.0003,5]
[392091834,1761150556075,-4874.494618,0.0003,5]
[392091835,1761150557116,-7168.96778444,0.0003,5]
[392091836,1761150557136,-19557.16080797,0.0003,2]
[392091837,1761150557155,-477.66101458,0.0003013,5]
[392091838,1761150557174,-335.54273215,0.00031,5]
[392091839,1761150557194,-3211.93064666,0.00032583,2]
[392091840,1761150557215,-170.38650998,0.000344,120]
[392091841,1761150557237,-185.1003484,0.000344,120]
[392091842,1761150557257,-170.38650998,0.000354,120]
[392091843,1761150557277,-4777.05,0.000354,2]
[392091844,1761150557297,-2635.21,0.000354,2]
[392091845,1761150557317,-7180.98,0.00035552,2]
[392091846,1761150557337,-5512.0,0.00038,5]
[392091847,1761150557357,-222.50758751,0.0004,120]
[392091848,1761150557378,-166.66,0.00040021,30]
[392091849,1761150557398,-200.0,0.00040083,2]
[392091850,1761150557419,-176.25397831,0.00040555,120]
[392091851,1761150557438,-5800.0,0.00040655,14]
[392091852,1761150557459,-2313.19490883,0.00040664,14]
[392091853,1761150563091,-151.0,0.00029999,2]
[392091854,1761150563116,-3486.80509117,0.00040664,14]
[392091855,1761150563136,-5800.0,0.00040672,14]
[392091856,1761150563161,-1125.62983093,0.00040727,2]
[392091857,1761150563183,-166.66,0.00040863,30]
[392091858,1761150563204,-300.0,0.00041,30]
[392091859,1761150563224,-215.145,0.00041,59]
[392091860,1761150563243,-334.0,0.000411,2]
[392091861,1761150563266,-600.0,0.000411,2]
[392091862,1761150563288,-535.33002248,0.000411,2]
[392091863,1761150564021,151.0,0.000411,2]
[392091864,1761150568095,-475.8297504,0.00041304,2]
[392091865,1761150568116,-975.98538638,0.00041481,2]
[392091866,1761150568139,-1014.0,0.000416,2]
[392091867,1761150568158,-186.1,0.00041618,120]
[392091868,1761150568179,-176.25397827,0.00041641,120]
[392091869,1761150568199,-560.36,0.00041674,2]
[392091870,1761150568220,-166.66,0.00041706,30]
[392091871,1761150568240,-228.83,0.00041789,2]
[392091872,1761150568260,-150.0,0.00041809,2]
[392091873,1761150570897,331.49499032,0.000344,120]
[392091874,1761150572336,331.49499032,0.000354,120]
[392091875,1761150573507,331.49499032,0.000365,120]
[392091876,1761150574197,331.49499032,0.000375,120]
[392091877,1761150575419,331.49499032,0.000387,120]
[392091878,1761150602601,400.0,0.00035552,2]
[392091879,1761150603726,150.0,0.00035553,2]
[392091880,1761150606516,225.47798341,0.00035268,120]
[392091881,1761150621418,180.32647662,0.000344,120]
[392091894,1761150632254,-6064.58969994,0.00035553,5]
[392091895,1761150632264,-43793.92908027,0.00035553,2]
[392091896,1761150632274,-25220.68799329,0.00035553,5]
[392091897,1761150632283,-11033.3188258,0.00035553,2]
[392091898,1761150632293,-7171.64,0.00042228,10]
[392091899,1761150632303,-571.66,0.00042367,2]
[392091900,1761150632315,-250.0,0.00042406,7]
[392091901,1761150632329,-166.66,0.00042549,30]
[392091902,1761150632339,-176.25397827,0.00042728,120]
[392091903,1761150632349,-696.1,0.00042841,30]
[392091904,1761150632359,-475.34,0.00042841,30]
[392091905,1761150632370,-966.63017186,0.00042941,15]
[392091906,1761150632380,-150.0,0.00042978,30]
[392091907,1761150632391,-157.3,0.00042978,30]
[392091908,1761150632401,-150.62,0.00042978,30]
[392091909,1761150632410,-150.0,0.00042978,30]
[392091910,1761150632420,-413.82,0.00042978,30]
[392091911,1761150632430,-168.43,0.00042978,30]
[392091912,1761150632439,-150.0,0.00042978,30]
[392091913,1761150632449,-10000.0,0.00043,120]
[392091914,1761150632460,-35844.21384394,0.00043041,120]
[392091915,1761150632472,-4276.801197,0.00043041,120]
[392091916,1761150632485,-2587.80468763,0.00043041,120]
[392091917,1761150632497,-1707.99758221,0.00043041,120]
[392091918,1761150632514,-1110.43826473,0.00043041,120]
[392091919,1761150632527,-4472.74442449,0.00043041,120]
[392091920,1761150632537,-101.1836352,0.00043041,30]
[392091921,1761150632549,-659.1457183,0.00043041,30]
[392091922,1761150632558,-157.0,0.00043062,90]
[392091923,1761150632570,-127.15203215,0.00043062,90]
[392091924,1761150632582,-29.84796785,0.00043062,90]
[392091926,1761150632591,-157.0,0.00043062,90]
[392091928,1761150632601,-157.0,0.00043062,90]
[392091929,1761150632610,-157.0,0.00043062,90]
[392091930,1761150632619,-133.69657777,0.00043062,90]
[392091931,1761150632631,-23.30342223,0.00043062,90]
[392091932,1761150632640,-157.0,0.00043062,90]
[392091934,1761150632650,-157.0,0.00043062,90]
[392091936,1761150632659,-157.0,0.00043062,90]
[392091939,1761150632670,-157.0,0.00043062,90]
[392091940,1761150632679,-157.0,0.00043062,90]
[392091942,1761150632689,-157.0,0.00043062,90]
[392091943,1761150632699,-157.0,0.00043062,90]
[392091944,1761150632707,-155.0,0.00043062,90]
[392091945,1761150632721,-155.0,0.00043062,90]
[392091946,1761150632732,-37.77328391,0.00043062,90]
[392091947,1761150632743,-117.22671609,0.00043062,90]
[392091948,1761150632753,-155.0,0.00043062,90]
[392091949,1761150632763,-155.0,0.00043062,90]
[392091950,1761150632772,-155.0,0.00043062,90]
[392091951,1761150632782,-155.0,0.00043062,90]
[392091952,1761150632791,-155.0,0.00043062,90]
[392091953,1761150632801,-155.0,0.00043062,90]
[392091954,1761150632811,-103.96289223,0.00043062,90]
[392091956,1761150638013,-1293.48215818,0.00043,120]
[392091957,1761150638040,-2804.80573572,0.00043,120]
[392091958,1761150638056,-510.12932662,0.00043,120]
[392091959,1761150638088,-1341.24265,0.00043,120]
[392091960,1761150638102,-3186.6,0.00043,120]
[392091961,1761150638132,-863.73012948,0.00043,120]
[392091962,1761150638143,-51.03710777,0.00043062,90]
[392091963,1761150638157,-155.0,0.00043062,90]
[392091964,1761150638169,-75.2827439,0.00043062,90]
[392091965,1761150638196,-81.7172561,0.00043062,90]
[392091966,1761150638209,-157.0,0.00043062,90]
[392091967,1761150638224,-157.0,0.00043062,90]
[392091968,1761150638237,-157.0,0.00043062,90]
[392091969,1761150638248,-157.0,0.00043062,90]
[392091970,1761150638260,-157.0,0.00043062,90]
[392091971,1761150638273,-157.0,0.00043062,90]
[392091972,1761150638285,-157.0,0.00043062,90]
[392091973,1761150638297,-157.0,0.00043062,90]
[392091974,1761150638310,-157.0,0.00043062,90]
[392091975,1761150638330,-157.0,0.00043062,90]
[392091976,1761150638343,-157.0,0.00043062,90]
[392091977,1761150638354,-157.0,0.00043062,90]
[392091979,1761150638366,-157.0,0.00043062,90]
[392091980,1761150638377,-153.0,0.00043062,90]
[392091981,1761150638388,-153.0,0.00043062,90]
[392091982,1761150638399,-153.0,0.00043062,90]
[392091983,1761150638411,-153.0,0.00043062,90]
[392091984,1761150638440,-153.0,0.00043062,90]
[392091985,1761150638453,-153.0,0.00043062,90]
[392091986,1761150638464,-153.0,0.00043062,90]
[392091987,1761150638475,-153.0,0.00043062,90]
[392091988,1761150638486,-153.0,0.00043062,90]
[392091989,1761150638498,-153.0,0.00043062,90]
[392091990,1761150638510,-153.0,0.00043062,90]
[392091991,1761150638521,-153.0,0.00043062,90]
[392091992,1761150638532,-153.0,0.00043062,90]
[392091993,1761150638543,-153.0,0.00043062,90]
[392091994,1761150638554,-966.63017181,0.00043159,15]
[392091995,1761150638564,-15.35093451,0.00043278,30]
[392091996,1761150639263,-1643.47906549,0.00043278,30]
[392091997,1761150639280,-500.0,0.0004335,2]
[392091998,1761150639296,-500.0,0.0004335,10]
[392091999,1761150639317,-966.63017181,0.00043376,15]
[392092000,1761150639344,-150.0,0.00043378,30]
[392092001,1761150639361,-168.43,0.00043378,30]
[392092002,1761150639375,-176.26,0.00043378,30]
[392092003,1761150639391,-150.0,0.00043378,30]
[392092004,1761150639409,-413.94,0.00043378,30]
[392092005,1761150639422,-150.0,0.00043378,30]
[392092006,1761150639437,-168.43,0.00043378,30]
[392092007,1761150639453,-166.66,0.00043391,30]
[392092008,1761150639468,-273.35776271,0.00043478,15]
[392092009,1761150639487,-3071.36432793,0.00043478,15]
[392092014,1761150640189,-333.94760494,0.00043478,15]
[392092017,1761150640243,-827.86832761,0.00043478,15]
[392092018,1761150640260,-392.94369326,0.00043478,15]
[392092019,1761150640274,-1801.68892314,0.00043567,120]
[392092020,1761150640299,-8198.31107686,0.00043567,120]
[392092021,1761150640313,-150.0,0.00043578,2]
[392092022,1761150640335,-966.63017181,0.00043594,15]
[392092023,1761150640353,-4899.48171642,0.00043636,15]
[392092024,1761150640366,-4899.48171642,0.00043794,15]
[392092025,1761150640380,-150.0,0.000438,30]
[392092026,1761150640394,-150.0,0.000438,30]
[392092027,1761150640408,-150.0,0.000438,30]
[392092028,1761150640423,-150.0,0.000438,30]
[392092029,1761150640436,-150.0,0.000438,30]
[392092030,1761150640450,-150.0,0.000438,30]
[392092031,1761150640464,-966.63017181,0.00043812,15]
[392092032,1761150640478,-176.25397827,0.00043814,120]
[392092033,1761150640492,-202.42876631,0.00043836,2]
[392092034,1761150640506,-1000.0,0.00043898,2]
[392092035,1761150640521,-1000.0,0.00043898,10]
[392092037,1761150640534,-4899.48171642,0.00043952,15]
[392092038,1761150640547,-2500.0,0.00044,2]
[392092039,1761150640561,-1000.0,0.00044,30]
[392092040,1761150640582,-1055.9819,0.00044,30]
[392092041,1761150640595,-1740.43578072,0.00044029,16]
[392092042,1761150640608,-966.63017181,0.00044029,15]
[392092043,1761150640621,-175.84,0.00044078,30]
[392092044,1761150640633,-168.35,0.00044078,30]
[392092045,1761150640646,-17698.0803302,0.0004409,3]
[392092046,1761150640659,-500.0,0.00044099,120]
[392092047,1761150640672,-55207.23774002,0.000441,30]
[392092049,1761150641106,-508.79692905,0.000441,30]
[392092050,1761150641116,-467.15356962,0.000441,30]
[392092051,1761150641126,-1509.54124808,0.0004411,15]
[392092052,1761150641142,-3389.94046834,0.0004411,15]
[392092053,1761150641153,-4424.52008255,0.00044114,3]
[392092054,1761150641163,-8849.0401651,0.00044123,3]
[392092055,1761150641173,-10000.0,0.00044133,120]
[392092056,1761150641182,-150.0,0.00044178,30]
[392092057,1761150641191,-150.0,0.00044178,30]
[392092058,1761150641201,-500.0,0.00044189,120]
[392092059,1761150641211,-500.0,0.00044199,120]
[392092060,1761150641221,-500.0,0.00044199,120]
[392092061,1761150641231,-500.0,0.00044199,120]
[392092062,1761150641241,-500.0,0.00044199,120]
[392092063,1761150641251,-500.0,0.00044199,120]
[392092064,1761150641261,-444.54205013,0.00044199,120]
[392092065,1761150641270,-4424.52008255,0.00044216,3]
[392092066,1761150641280,-166.66,0.00044234,30]
[392092067,1761150641290,-966.63017181,0.00044247,15]
[392092068,1761150641300,-4899.48171642,0.00044268,15]
[392092069,1761150641310,-4424.52008255,0.00044302,3]
[392092070,1761150641322,-850.76,0.00044358,120]
[392092071,1761150641334,-4424.52008255,0.00044408,3]
[392092072,1761150641345,-4899.48171642,0.00044426,15]
[392092073,1761150641356,-1517.37453729,0.00044446,2]
[392092074,1761150641367,-688.32152383,0.00044446,10]
[392092075,1761150641378,-966.63017181,0.00044465,15]
[392092076,1761150641389,-4424.52008255,0.00044505,3]
[392092077,1761150641400,-726.09031,0.0004455,23]
[392092078,1761150641411,-4899.48171642,0.00044584,15]
[392092079,1761150641422,-759.96280943,0.00044593,120]
[392092080,1761150641433,-500.0,0.00044666,30]
[392092081,1761150641443,-4424.52008255,0.00044672,3]
[392092082,1761150641453,-966.63017181,0.00044682,15]
[392092083,1761150641465,-8849.0401651,0.0004469,3]
[392092084,1761150641475,-10000.0,0.000447,120]
[392092085,1761150641485,-4899.48171642,0.00044742,15]
[392092086,1761150641495,-168.0,0.00044743,2]
[392092087,1761150641505,-4424.52008255,0.00044794,3]
[392092088,1761150641514,-2779.34283163,0.0004487,3]
[392092089,1761150641526,-1645.17725092,0.0004487,3]
[392092090,1761150641535,-2834.0,0.00044878,74]
[392092091,1761150641544,-236.475322,0.0004488,120]
[392092092,1761150641553,-4424.52008255,0.0004488,3]
[392092093,1761150641565,-5000.0,0.0004488,120]
[392092094,1761150641580,-42314.82734453,0.0004489,3]
[392092095,1761150641769,-2228.88166078,0.0004489,3]
[392092096,1761150641782,-6813.37099555,0.0004489,3]
[392092101,1761150643377,-2798.68,0.00043,120]
[392092102,1761150643387,-8263.78380002,0.0004489,3]
[392092103,1761150643437,-4335.41526,0.0004489,3]
[392092104,1761150643456,-11260.56234252,0.0004489,3]
[392092105,1761150643466,-66518.9038556,0.0004489,3]
[392092106,1761150643476,-1000.0,0.000449,2]
[392092107,1761150643487,-176.25397827,0.000449,120]
[392092108,1761150643498,-1000.0,0.000449,7]
[392092109,1761150643508,-29294.27982359,0.000449,60]
[392092110,1761150643527,-1742.14537582,0.000449,60]
[392092111,1761150643591,199.57760385,0.000344,120]
[392092112,1761150643629,-100134.45470059,0.000449,60]
[392092113,1761150643639,-966.63017181,0.000449,15]